bitfinex-derivatives/quotes_ETHF0:USTF0_20230101
["timestamp","ask_amount","ask_price","bid_price","bid_amount"]
[1672542903719,12.13591686,1193.5,1193.2,8.39540369]
[1672542903936,3.12805205,1193.3,1193.2,8.39540369]
[1672542904141,6.62805205,1193.3,1193.2,5.88543248]
[1672542904667,3.5,1193.3,1193.2,5.88543248]
[1672542905089,3.5,1193.3,1193.2,4.0]
[1672542905295,3.5,1193.3,1193.2,5.88543248]
[1672542906141,3.5,1193.3,1193.2,4.0]
[1672542906352,3.5,1193.3,1193.1,1.88543248]
[1672542906556,3.1264977,1193.2,1193.1,5.88543248]
[1672542906774,6.6264977,1193.3,1193.1,6.50997121]
[1672542906977,6.6264977,1193.3,1193.2,1.88485429]
[1672542907513,3.5,1193.3,1193.1,8.3948255]
[1672542907832,3.12582732,1193.2,1193.1,8.3948255]
[1672542908924,6.62582732,1193.3,1193.1,6.50997121]
[1672542909120,6.62582732,1193.3,1193.1,8.39420248]
[1672542909532,3.12582732,1193.2,1193.1,5.88423127]
[1672542911108,6.62582732,1193.3,1193.1,5.88423127]
[1672542912486,3.12582732,1193.2,1193.1,5.88423127]
[1672542913432,6.62582732,1193.3,1193.1,5.88423127]
[1672542913847,3.12582732,1193.2,1193.1,5.88423127]
[1672542914488,6.62582732,1193.3,1193.1,5.88423127]
[1672542919108,3.12582732,1193.2,1193.1,5.88423127]
[1672542919721,3.12582732,1193.2,1193.1,4.0]
[1672542920909,3.12582732,1193.2,1193.1,5.88423127]
[1672542921192,3.12582732,1193.2,1193.1,4.0]
[1672542924232,3.12582732,1193.2,1193.1,3.99514686]
[1672542929520,11.63591686,1193.3,1193.0,13.652]
[1672542929823,3.12232558,1193.1,1192.9,1.88423127]
[1672542930032,3.12232558,1193.1,1193.0,4.0]
[1672542934649,7.12232558,1193.1,1193.0,4.0]
[1672542937582,7.12232558,1193.1,1192.9,3.5]
[1672542937784,7.12232558,1193.1,1192.9,4.0]
[1672542939474,7.12232558,1193.1,1192.9,5.88423127]
[1672542940211,7.12232558,1193.1,1192.9,4.0]
[1672542941574,3.12232558,1193.0,1192.9,4.0]
[1672542941779,3.12232558,1193.0,1192.8,13.652]
[1672542941994,3.12106501,1192.9,1192.7,1.88423127]
[1672542942204,3.12106501,1192.9,1192.8,4.0]
[1672542942625,3.12106501,1193.0,1192.8,4.0]
[1672542942941,3.12106501,1193.0,1192.8,5.88423127]
[1672542943469,3.5,1192.9,1192.8,4.0]
[1672542945245,3.5,1192.9,1192.8,5.88423127]
[1672542945665,7.12106501,1193.1,1192.8,5.88423127]
[1672542945882,3.5,1192.9,1192.8,4.0]
[1672542952710,3.12106501,1193.0,1192.8,4.0]
[1672542952917,7.12106501,1193.1,1192.8,5.88423127]
[1672542955864,3.12106501,1193.0,1192.8,4.0]
[1672542956604,3.5,1192.9,1192.8,4.0]
[1672542957863,3.12106501,1193.0,1192.8,4.0]
[1672542958486,3.12106501,1193.1,1192.9,1.88423127]
[1672542959234,3.12106501,1193.1,1192.9,10.25023127]
[1672542959544,3.12106501,1193.1,1193.0,3.5]
[1672542964382,7.75503855,1193.2,1193.0,3.5]
[1672542967642,12.13591686,1193.2,1193.0,3.5]
[1672542969222,3.75503855,1193.1,1193.0,3.5]
[1672542971736,12.13591686,1193.2,1193.0,4.75614317]
[1672542972687,12.13591686,1193.2,1193.0,3.5]
[1672542972900,12.13591686,1193.2,1193.0,4.75614317]
[1672542976677,12.13591686,1193.2,1193.0,3.5]
[1672542976895,3.75503855,1193.1,1193.0,3.5]
[1672542978150,3.12616415,1193.1,1193.0,6.64037444]
[1672542979623,3.12616415,1193.1,1193.0,4.75614317]
[1672542981412,3.12616415,1193.1,1193.0,6.64037444]
[1672542981623,3.12616415,1193.1,1193.0,4.75614317]
[1672542982571,7.75503855,1193.2,1193.0,3.5]
[1672542982774,12.13591686,1193.2,1193.0,3.5]
[1672542983518,12.13591686,1193.2,1192.9,3.14037444]
[1672542983724,3.12537172,1193.0,1192.9,3.14037444]
[1672542986773,3.12537172,1193.0,1192.9,1.88423127]
[1672542986977,3.12537172,1193.0,1192.9,4.39420248]
[1672542987614,3.12537172,1193.0,1192.9,1.88423127]
[1672542988244,3.12537172,1193.1,1192.8,9.65070321]
[1672542988455,7.75503855,1193.2,1193.0,1.25661057]
[1672542988664,7.75503855,1193.2,1193.1,3.5]
[1672542990245,7.75503855,1193.2,1193.0,3.14152643]
[1672542990560,7.75503855,1193.2,1193.0,3.5]
[1672542990759,12.13591686,1193.2,1193.0,3.5]
[1672542990970,3.75503855,1193.1,1193.0,4.75661057]
[1672542991396,12.13591686,1193.2,1193.0,4.75661057]
[1672542992658,3.75503855,1193.1,1193.0,4.75661057]
[1672542994441,7.75503855,1193.2,1193.0,6.64152643]
[1672542994653,7.75503855,1193.2,1193.0,4.75661057]
[1672542994863,7.75503855,1193.2,1193.0,6.64152643]
[1672542995612,7.75503855,1193.2,1193.0,4.75661057]
[1672542995920,12.13591686,1193.2,1193.0,4.75661057]
[1672542996128,7.75503855,1193.2,1193.0,6.64152643]
[1672542996342,7.75503855,1193.2,1193.0,4.75661057]
[1672542996655,7.75503855,1193.2,1193.0,6.64152643]
[1672542996862,7.75503855,1193.2,1193.0,4.75661057]
[1672542997070,12.13591686,1193.2,1193.0,4.75661057]
[1672542997279,12.13591686,1193.2,1193.0,6.64152643]
[1672542997805,12.13591686,1193.2,1193.0,4.75661057]
[1672542998016,3.75503855,1193.1,1193.0,4.75661057]
[1672542999804,3.75503855,1193.1,1193.0,4.75056752]
[1672543002858,12.13591686,1193.2,1193.0,4.75056752]
[1672543004429,3.75503855,1193.1,1193.0,4.75056752]
[1672543006643,12.13591686,1193.2,1193.0,4.75056752]
[1672543007380,3.75503855,1193.1,1193.0,4.75056752]
[1672543007690,12.13591686,1193.2,1193.0,6.63548338]
[1672543008318,3.75503855,1193.1,1193.0,4.75056752]
[1672543009572,12.13591686,1193.2,1193.0,6.63548338]
[1672543012319,7.75503855,1193.2,1193.0,6.63548338]
[1672543012530,7.75503855,1193.2,1193.1,1.25661057]
[1672543013679,7.75503855,1193.2,1193.0,6.63548338]
[1672543013891,12.13591686,1193.2,1193.0,6.63548338]
[1672543015054,3.75503855,1193.1,1193.0,4.75056752]
[1672543019151,3.75503855,1193.1,1193.0,3.49395695]
[1672543019361,3.75503855,1193.1,1193.0,4.75056752]
[1672543022631,3.75503855,1193.1,1193.0,1.25661057]
[1672543022840,8.38087831,1193.2,1192.8,3.14152643]
[1672543023039,8.1330243,1193.1,1192.9,1.25661057]
[1672543023256,3.5,1193.0,1192.9,1.25661057]
[1672543023685,3.5,1193.0,1192.8,5.25661057]
[1672543023890,3.5,1193.0,1192.8,7.14152643]
[1672543024102,7.25214599,1193.0,1192.8,5.25661057]
[1672543024307,3.12500709,1192.9,1192.8,5.25661057]
[1672543024627,7.25214599,1193.0,1192.8,1.25661057]
[1672543024833,3.75214599,1192.9,1192.7,3.14152643]
[1672543025047,3.12469684,1192.8,1192.7,3.14152643]
[1672543025256,3.12469684,1192.8,1192.7,7.14152643]
[1672543025466,7.12469684,1192.8,1192.7,7.14152643]
[1672543026097,7.12469684,1192.8,1192.7,5.25661057]
[1672543028199,7.12469684,1192.8,1192.7,4.0]
[1672543029357,7.12469684,1192.8,1192.7,5.25661057]
[1672543029883,7.12469684,1192.8,1192.7,4.0]
[1672543033876,4.0,1192.8,1192.7,4.0]
[1672543034927,7.12469684,1192.8,1192.7,4.0]
[1672543035348,7.12469684,1192.8,1192.6,4.75661057]
[1672543037458,4.0,1192.8,1192.6,4.75661057]
[1672543037667,7.12469684,1192.8,1192.6,4.75661057]
[1672543037976,4.0,1192.8,1192.6,4.75661057]
[1672543039455,7.12469684,1192.8,1192.6,3.5]
[1672543042500,7.12469684,1192.8,1192.5,5.25661057]
[1672543042710,7.12469684,1192.8,1192.5,4.0]
[1672543042711,3.12469684,1192.7,1192.5,4.0]
[1672543044077,7.12469684,1192.8,1192.5,4.0]
[1672543044281,3.12469684,1192.7,1192.5,4.0]
[1672543046605,7.12469684,1192.8,1192.5,4.0]
[1672543046808,4.0,1192.8,1192.5,7.14152643]
[1672543048280,4.0,1192.8,1192.6,1.25661057]
[1672543049646,7.12469684,1192.8,1192.5,7.14152643]
[1672543050494,7.12469684,1192.8,1192.5,5.25661057]
[1672543050805,7.12469684,1192.8,1192.5,7.14152643]
[1672543051230,7.12469684,1192.8,1192.6,1.25661057]
[1672543052068,7.12469684,1192.8,1192.5,7.14152643]
[1672543052278,7.12469684,1192.8,1192.6,1.25661057]
[1672543054592,7.12469684,1192.8,1192.5,7.14152643]
[1672543055113,3.12469684,1192.7,1192.5,5.25661057]
[1672543055332,3.12469684,1192.7,1192.5,7.14152643]
[1672543056691,3.12469684,1192.7,1192.5,5.25661057]
[1672543057646,3.12469684,1192.7,1192.5,7.14152643]
[1672543058907,3.12469684,1192.7,1192.5,5.25661057]
[1672543059113,3.12469684,1192.7,1192.5,7.14152643]
[1672543059426,3.12469684,1192.7,1192.6,1.25661057]
[1672543060896,3.12469684,1192.7,1192.6,3.14152643]
[1672543062903,7.75214599,1192.8,1192.5,1.25661057]
[1672543063113,3.12232212,1192.6,1192.5,1.25661057]
[1672543063635,3.75214599,1192.7,1192.4,7.14598185]
[1672543063841,3.12216553,1192.5,1192.4,7.14598185]
[1672543064473,3.12216553,1192.5,1192.4,5.26106599]
[1672543065099,3.12216553,1192.5,1192.4,4.76106599]
[1672543065317,3.12216553,1192.5,1192.4,1.26106599]
[1672543065948,3.12216553,1192.5,1192.4,0.00445542]
[1672543066159,3.12216553,1192.5,1192.4,0.00078457]
[1672543066473,3.12216553,1192.5,1192.4,4.75739514]
[1672543067304,3.12216553,1192.5,1192.4,1.25739514]
[1672543067517,3.12216553,1192.5,1192.4,0.00078457]
[1672543069211,3.12216553,1192.5,1192.4,1.25739514]
[1672543069422,6.62216553,1192.6,1192.4,1.25739514]
[1672543069620,6.62216553,1192.6,1192.4,4.75739514]
[1672543071732,3.12216553,1192.5,1192.4,3.50078457]
[1672543072047,6.62216553,1192.6,1192.4,3.50078457]
[1672543072251,6.62216553,1192.6,1192.4,6.642311]
[1672543072674,6.62216553,1192.6,1192.4,4.75739514]
[1672543076569,3.12216553,1192.5,1192.4,3.50078457]
[1672543077302,6.62216553,1192.6,1192.4,4.75739514]
[1672543077512,6.62216553,1192.6,1192.4,3.50078457]
[1672543077724,3.12216553,1192.5,1192.4,3.50078457]
[1672543078765,6.62216553,1192.6,1192.4,4.75739514]
[1672543083824,6.62216553,1192.6,1192.4,1.25739514]
[1672543084131,3.12216553,1192.5,1192.4,0.00078457]
[1672543086971,3.5,1192.6,1192.5,3.5]
[1672543087181,6.62216553,1192.6,1192.5,3.5]
[1672543088862,6.62216553,1192.6,1192.4,1.25739514]
[1672543089286,3.12216553,1192.5,1192.4,0.00078457]
[1672543094008,3.12216553,1192.5,1192.4,1.25739514]
[1672543096850,3.12216553,1192.5,1192.4,0.00078457]
[1672543097370,3.12216553,1192.5,1192.4,1.25739514]
[1672543098212,3.12216553,1192.5,1192.4,4.75739514]
[1672543100211,3.12177196,1192.5,1192.4,4.75739514]
[1672543101686,3.12177196,1192.5,1192.4,6.642311]
[1672543102317,7.25214599,1192.6,1192.4,6.642311]
[1672543103254,11.6330243,1192.6,1192.4,6.642311]
[1672543103465,7.25214599,1192.6,1192.5,1.25661057]
[1672543103680,7.25214599,1192.6,1192.4,6.642311]
[1672543103887,3.12403728,1192.5,1192.4,6.642311]
[1672543104098,3.12403728,1192.5,1192.4,5.38570043]
[1672543109261,3.12403728,1192.5,1192.4,7.89567164]
[1672543109779,3.12403728,1192.5,1192.4,5.38570043]
[1672543110301,7.25214599,1192.6,1192.4,1.25882817]
[1672543110512,3.75214599,1192.5,1192.4,1.25882817]
[1672543111358,3.75214599,1192.5,1192.4,0.00078457]
[1672543111569,8.1330243,1192.5,1192.4,0.00078457]
[1672543111989,3.75214599,1192.5,1192.4,0.00078457]
[1672543118298,11.6330243,1192.6,1192.4,0.00078457]
[1672543118499,7.25214599,1192.6,1192.4,0.00078457]
[1672543118714,11.6330243,1192.6,1192.4,0.00078457]
[1672543119762,3.75214599,1192.5,1192.4,0.00078457]
[1672543120923,11.6330243,1192.6,1192.4,0.00078457]
[1672543128074,7.25214599,1192.6,1192.4,0.00078457]
[1672543128390,11.6330243,1192.6,1192.4,0.00078457]
[1672543130598,0.00187078,1192.4,1192.3,1.2580436]
[1672543130797,3.12299275,1192.4,1192.3,1.2580436]
[1672543131435,3.12299275,1192.4,1192.3,3.14295946]
[1672543131644,3.12299275,1192.4,1192.3,1.2580436]
[1672543132281,3.12299275,1192.4,1192.3,3.14295946]
[1672543132695,3.12299275,1192.4,1192.3,1.2580436]
[1672543135541,3.12299275,1192.4,1192.3,3.14295946]
[1672543137013,3.12299275,1192.4,1192.3,1.2580436]
[1672543137327,3.12299275,1192.4,1192.3,3.14295946]
[1672543147517,0.00187078,1192.4,1192.3,1.2580436]
[1672543147940,0.00187078,1192.4,1192.3,3.14295946]
[1672543148256,0.00187078,1192.4,1192.3,1.2580436]
[1672543148569,3.12432102,1192.4,1192.3,3.14295946]
[1672543148985,0.00187078,1192.4,1192.3,3.14295946]
[1672543155720,3.12541848,1192.4,1192.3,1.88491586]
[1672543157608,3.12541848,1192.4,1192.3,4.39488707]
[1672543158336,0.00187078,1192.4,1192.3,3.14303715]
[1672543158545,3.12498378,1192.4,1192.3,1.88491586]
[1672543158760,3.50187078,1192.4,1192.3,3.14304516]
[1672543158970,4.00187078,1192.4,1192.3,3.14304516]
[1672543159288,0.00187078,1192.4,1192.3,3.14304516]
[1672543163708,0.00187078,1192.4,1192.3,1.2581293]
[1672543163907,4.00187078,1192.4,1192.3,3.14304516]
[1672543164649,0.00187078,1192.4,1192.3,1.2581293]
[1672543164855,4.00187078,1192.4,1192.3,1.2581293]
[1672543165063,7.75401677,1192.4,1192.3,1.2581293]
[1672543166009,4.00187078,1192.4,1192.3,1.2581293]
[1672543168641,4.00187078,1192.4,1192.3,3.14304516]
[1672543174644,4.00187078,1192.4,1192.3,1.2581293]
[1672543177794,4.00187078,1192.4,1192.2,3.14304516]
[1672543177795,12.36787078,1192.4,1192.2,3.14304516]
[1672543178105,3.75214599,1192.3,1192.1,3.14304516]
[1672543178321,6.62219024,1192.2,1192.1,7.14304516]
[1672543178947,3.12219024,1192.2,1192.1,5.88491586]
[1672543179261,3.12219024,1192.2,1192.1,1.88491586]
[1672543179475,3.1205724,1192.2,1192.1,7.14238848]
[1672543179684,3.1205724,1192.2,1192.1,5.25747262]
[1672543179893,3.1205724,1192.2,1192.1,7.14238848]
[1672543180518,6.6205724,1192.2,1192.1,5.25747262]
[1672543180938,7.25214599,1192.2,1192.0,1.6421]
[1672543181681,15.61814599,1192.2,1192.0,1.6421]
[1672543182947,11.48211389,1192.1,1192.0,1.6421]
[1672543183150,11.48202466,1192.1,1192.0,1.6421]
[1672543183781,12.11814599,1192.1,1192.0,1.6421]
[1672543184312,15.61814599,1192.2,1192.0,1.6421]
[1672543184516,3.11306319,1192.1,1192.0,1.6421]
[1672543185151,3.11306319,1192.1,1192.0,5.1421]
[1672543185878,3.11306319,1192.2,1192.0,5.1421]
[1672543186091,3.11306319,1192.3,1192.0,6.39957262]
[1672543186296,3.11306319,1192.3,1192.0,16.65048848]
[1672543186513,3.11306319,1192.3,1192.1,4.0]
[1672543187038,3.0,1192.2,1192.1,4.0]
[1672543187355,6.11306319,1192.2,1192.1,4.0]
[1672543188081,3.0,1192.2,1192.1,4.0]
[1672543188295,6.11306319,1192.2,1192.1,4.0]
[1672543189663,3.0,1192.2,1192.1,4.0]
[1672543190194,6.11306319,1192.2,1192.1,4.0]
[1672543190610,3.0,1192.2,1192.1,4.0]
[1672543190826,6.11306319,1192.2,1192.1,4.0]
[1672543191248,3.0,1192.2,1192.1,4.0]
[1672543192288,3.11306319,1192.3,1192.1,5.25747262]
[1672543192508,3.11306319,1192.3,1192.1,4.0]
[1672543192713,7.11493397,1192.4,1192.1,5.25747262]
[1672543193452,3.5,1192.2,1192.1,4.0]
[1672543197239,3.5,1192.2,1192.1,3.99734149]
[1672543199023,3.11306319,1192.3,1192.1,3.99734149]
[1672543200275,3.11306319,1192.3,1192.1,5.25481411]
[1672543200705,3.11306319,1192.3,1192.1,3.99734149]
[1672543201965,3.11306319,1192.3,1192.1,5.25481411]
[1672543203648,3.11306319,1192.3,1192.1,3.99734149]
[1672543203854,3.11306319,1192.3,1192.1,5.25481411]
[1672543212573,3.11306319,1192.3,1192.1,7.13972997]
[1672543212896,3.11306319,1192.3,1192.1,5.25481411]
[1672543213107,3.5,1192.2,1192.1,5.25481411]
[1672543213422,6.61306319,1192.2,1192.1,3.99734149]
[1672543213631,6.61306319,1192.2,1192.1,5.25481411]
[1672543213947,3.11306319,1192.2,1192.1,5.25481411]
[1672543214149,3.11306319,1192.3,1192.1,5.25481411]
[1672543214355,3.11306319,1192.2,1192.1,5.25481411]
[1672543216888,3.11306319,1192.3,1192.1,7.13972997]
[1672543217309,3.11306319,1192.3,1192.2,1.25747262]
[1672543218253,3.10836427,1192.3,1192.2,1.25747262]
[1672543218456,3.10836427,1192.3,1192.1,7.13972997]
[1672543218667,3.5,1192.2,1192.1,5.25481411]
[1672543219719,7.75401677,1192.4,1192.1,5.25481411]
[1672543220145,7.75401677,1192.4,1192.1,7.13972997]
[1672543220770,7.75401677,1192.4,1192.2,1.25747262]
[1672543220771,4.00187078,1192.4,1192.2,1.25747262]
[1672543222978,7.75401677,1192.4,1192.2,1.25747262]
[1672543223188,4.00187078,1192.4,1192.2,1.25747262]
[1672543224344,7.75401677,1192.4,1192.2,3.14238848]
[1672543224548,7.75401677,1192.4,1192.2,1.25747262]
[1672543225399,7.75214599,1192.4,1192.2,3.14238848]
[1672543228023,7.75214599,1192.4,1192.2,1.25747262]
[1672543228223,7.75214599,1192.4,1192.2,3.14238848]
[1672543228759,4.0,1192.4,1192.2,3.14238848]
[1672543238436,3.12085068,1192.3,1192.2,3.14238848]
[1672543238645,3.12085068,1192.3,1192.2,1.25747262]
[1672543238845,7.75214599,1192.4,1192.2,1.25747262]
[1672543239060,3.12122864,1192.3,1192.2,3.14238848]
[1672543239478,7.75214599,1192.4,1192.2,1.25747262]
[1672543239684,3.12128782,1192.3,1192.2,1.25747262]
[1672543240001,3.12129738,1192.3,1192.2,3.14238848]
[1672543240535,3.12225184,1192.3,1192.2,3.14238848]
[1672543240747,3.12225184,1192.3,1192.2,1.25747262]
[1672543240951,3.12225184,1192.3,1192.2,3.14238848]
[1672543241486,3.12225184,1192.3,1192.2,1.88491586]
[1672543241894,3.12225184,1192.3,1192.2,3.14240721]
[1672543243683,3.12225184,1192.4,1192.2,15.50362068]
[1672543243894,3.12225184,1192.5,1192.3,3.99683884]
[1672543244102,3.12225184,1192.5,1192.4,5.38584697]
[1672543245681,3.12225184,1192.5,1192.4,6.6422441]
[1672543247578,7.12225184,1192.6,1192.4,4.75639713]
[1672543248742,3.12225184,1192.5,1192.4,4.75639713]
[1672543249465,7.12225184,1192.6,1192.4,4.75639713]
[1672543250833,4.0,1192.6,1192.5,1.25639713]
[1672543251149,4.0,1192.6,1192.5,3.1422441]
[1672543251364,4.0,1192.6,1192.5,1.25639713]
[1672543253255,4.0,1192.6,1192.4,15.0082441]
[1672543255985,3.12225184,1192.7,1192.4,15.0082441]
[1672543256198,3.12225184,1192.7,1192.5,1.25639713]
[1672543257141,3.5,1192.6,1192.4,15.0082441]
[1672543257973,3.12225184,1192.7,1192.5,1.25639713]
[1672543258178,7.12225184,1192.8,1192.6,4.0]
[1672543260923,3.12225184,1192.7,1192.6,4.0]
[1672543261446,7.12225184,1192.8,1192.6,4.0]
[1672543262184,3.12225184,1192.7,1192.6,4.0]
[1672543263116,3.5,1192.6,1192.4,13.12239713]
[1672543265863,3.12225184,1192.7,1192.4,13.12239713]
[1672543266073,3.5,1192.6,1192.4,13.12239713]
[1672543269544,6.62225184,1192.6,1192.4,4.75639713]
[1672543269860,6.62225184,1192.6,1192.4,4.0]
[1672543270271,6.62225184,1192.6,1192.4,5.25639713]
[1672543271118,6.62225184,1192.6,1192.4,4.0]
[1672543271642,3.5,1192.6,1192.4,5.25639713]
[1672543272802,3.5,1192.6,1192.4,7.1422441]
[1672543273218,3.5,1192.6,1192.4,5.25639713]
[1672543274805,6.62225184,1192.6,1192.4,5.25639713]
[1672543275008,6.62225184,1192.6,1192.4,4.0]
[1672543275219,6.62225184,1192.6,1192.4,5.25639713]
[1672543277528,6.62225184,1192.6,1192.4,7.1422441]
[1672543279944,6.62225184,1192.6,1192.5,1.25639713]
[1672543281107,6.62225184,1192.6,1192.4,7.1422441]
[1672543281420,6.62225184,1192.6,1192.5,1.25639713]
[1672543283520,6.62225184,1192.6,1192.5,3.1422441]
[1672543289938,3.5,1192.6,1192.5,3.1422441]
[1672543290257,6.62534924,1192.6,1192.5,3.1422441]
[1672543291522,3.5,1192.6,1192.5,1.25639713]
[1672543292244,3.5,1192.6,1192.5,3.1422441]
[1672543293720,3.5,1192.6,1192.5,1.25639713]
[1672543294450,3.5,1192.6,1192.5,3.1422441]
[1672543294983,3.5,1192.6,1192.5,3.13945874]
[1672543296989,6.62531528,1192.6,1192.5,3.13945874]
[1672543299193,6.62531528,1192.6,1192.5,1.88584697]
[1672543299931,6.62603198,1192.6,1192.5,1.88584697]
[1672543300135,3.5,1192.6,1192.5,1.88584697]
[1672543300553,6.62604618,1192.6,1192.5,1.88584697]
[1672543300873,3.5,1192.6,1192.5,1.88584697]
[1672543301080,6.62602382,1192.6,1192.5,1.88584697]
[1672543301399,3.5,1192.6,1192.5,1.88584697]
[1672543302553,3.75214599,1192.7,1192.5,1.88584697]
[1672543302869,3.75214599,1192.7,1192.6,3.5]
[1672543305288,12.1330243,1192.8,1192.6,3.5]
[1672543306964,7.75214599,1192.8,1192.6,5.38584697]
[1672543308235,7.75214599,1192.8,1192.6,3.5]
[1672543308443,12.1330243,1192.8,1192.6,3.5]
[1672543308763,3.75214599,1192.7,1192.6,3.5]
[1672543312436,12.1330243,1192.8,1192.6,3.5]
[1672543313280,3.75214599,1192.7,1192.6,3.5]
[1672543313489,12.1330243,1192.8,1192.6,3.5]
[1672543315903,7.75214599,1192.8,1192.6,5.38584697]
[1672543316223,7.75214599,1192.8,1192.6,3.5]
[1672543317164,7.75214599,1192.8,1192.6,5.38584697]
[1672543318325,3.12538713,1192.7,1192.6,5.38584697]
[1672543320016,3.12538713,1192.7,1192.6,16.28281818]
[1672543320229,3.75214599,1193.2,1192.7,11.478]
[1672543320433,8.1330243,1193.3,1192.9,12.7827725]
[1672543320858,8.1330243,1193.3,1193.0,1.8839025]
[1672543321069,4.0,1193.2,1193.1,4.0]
[1672543321910,7.75214599,1193.2,1193.1,4.0]
[1672543322119,7.75214599,1193.2,1192.9,12.59340458]
[1672543322330,3.75214599,1193.1,1192.8,1.8839025]
[1672543322640,3.5,1193.0,1192.9,4.0]
[1672543323482,3.5,1193.0,1192.9,5.8839025]
[1672543323902,3.5,1193.0,1192.9,4.0]
[1672543331269,4.0,1193.2,1192.9,4.0]
[1672543333686,3.75214599,1193.3,1193.0,8.387]
[1672543333895,4.0,1193.2,1193.1,0.5]
[1672543336201,3.5,1193.4,1193.1,0.5]
[1672543337569,3.75214599,1193.6,1193.1,0.7125437]
[1672543337782,4.0,1193.6,1193.2,8.387]
[1672543339993,4.0,1193.6,1193.3,12.387]
[1672543340835,4.0,1193.6,1193.4,0.5]
[1672543344095,4.0,1193.6,1193.3,4.0]
[1672543345360,4.0,1193.6,1193.1,22.039]
[1672543345673,4.0,1193.6,1193.1,13.652]
[1672543346835,5.1814,1193.6,1193.2,4.0]
[1672543350506,13.5684,1193.6,1193.2,4.0]
[1672543350822,17.32054599,1193.6,1193.2,4.0]
[1672543351870,13.5684,1193.6,1193.2,4.0]
[1672543352082,17.32054599,1193.6,1193.2,4.0]
[1672543354503,21.7014243,1193.6,1193.2,4.0]
[1672543354811,21.7014243,1193.6,1193.0,4.0]
[1672543355225,17.32054599,1193.6,1193.0,4.0]
[1672543355967,21.7014243,1193.6,1193.0,4.0]
[1672543356176,3.75214599,1193.5,1193.0,4.0]
[1672543356385,3.5,1193.4,1193.0,4.0]
[1672543361228,3.5,1193.4,1193.0,5.8839025]
[1672543362071,3.5,1193.4,1193.0,4.0]
[1672543362381,3.5,1193.4,1193.0,5.8839025]
[1672543363108,3.5,1193.4,1193.0,4.0]
[1672543363320,3.5,1193.4,1193.0,5.8839025]
[1672543363639,3.5,1193.4,1193.0,14.2709025]
[1672543364263,7.25214599,1193.4,1193.0,14.2709025]
[1672543365323,3.5,1193.4,1193.0,14.2709025]
[1672543365850,7.25214599,1193.4,1193.0,14.2709025]
[1672543366585,3.5,1193.4,1193.0,14.2709025]
[1672543369423,3.5,1193.4,1193.0,16.7827725]
[1672543370686,3.5,1193.4,1193.0,14.2709025]
[1672543370999,3.5,1193.4,1193.0,16.7827725]
[1672543371421,3.5,1193.4,1193.0,14.2709025]
[1672543371734,7.25214599,1193.4,1193.0,14.2709025]
[1672543371937,7.25214599,1193.4,1193.0,16.7827725]
[1672543372789,7.25214599,1193.4,1193.0,14.2709025]
[1672543375626,7.25214599,1193.4,1193.0,16.7827725]
[1672543377936,7.25214599,1193.4,1193.1,10.2709025]
[1672543378146,7.25214599,1193.4,1193.2,0.5]
[1672543380142,11.6330243,1193.4,1193.2,0.5]
[1672543380358,3.75214599,1193.3,1193.2,0.5]
[1672543380780,11.6330243,1193.4,1193.2,0.5]
[1672543381521,3.75214599,1193.3,1193.2,0.5]
[1672543381831,11.6330243,1193.4,1193.2,0.5]
[1672543382040,3.75214599,1193.3,1193.2,0.5]
[1672543382250,3.75214599,1193.4,1193.2,2.3839025]
[1672543382665,7.25214599,1193.4,1193.2,0.5]
[1672543383303,3.5,1193.4,1193.2,2.3839025]
[1672543384037,7.25214599,1193.4,1193.2,2.3839025]
[1672543387611,3.5,1193.4,1193.2,10.7709025]
[1672543388135,7.25214599,1193.4,1193.2,10.7709025]
[1672543388342,7.25214599,1193.4,1193.2,8.887]
[1672543388970,3.75214599,1193.4,1193.2,8.887]
[1672543389186,3.75214599,1193.5,1193.2,13.2827725]
[1672543390331,3.75214599,1193.5,1193.2,13.27757488]
[1672543390763,3.75214599,1193.5,1193.3,10.2709025]
[1672543390980,12.1330243,1193.6,1193.4,4.0]
[1672543391181,3.75214599,1193.5,1193.4,4.0]
[1672543395496,3.75214599,1193.5,1193.3,4.0]
[1672543395806,3.5,1193.4,1193.3,4.0]
[1672543397070,8.1330243,1193.5,1193.3,4.0]
[1672543397394,3.75214599,1193.5,1193.3,4.0]
[1672543397597,3.5,1193.4,1193.3,4.0]
[1672543402436,8.1330243,1193.5,1193.3,4.0]
[1672543402647,3.75214599,1193.5,1193.3,4.0]
[1672543411692,3.0,1193.4,1193.3,4.0]
[1672543412005,3.75214599,1193.5,1193.3,4.0]
[1672543415049,3.75214599,1193.5,1193.3,7.13989691]
[1672543415270,3.75214599,1193.5,1193.3,5.25599441]
[1672543416628,12.1330243,1193.6,1193.3,15.52689691]
[1672543417889,3.75214599,1193.5,1193.3,15.52689691]
[1672543421666,3.75214599,1193.5,1193.4,1.25599441]
[1672543423353,12.1330243,1193.6,1193.4,1.25599441]
[1672543423767,3.75214599,1193.5,1193.3,7.13989691]
[1672543425029,3.0,1193.4,1193.3,7.13989691]
[1672543426400,3.75214599,1193.5,1193.3,7.13989691]
[1672543427663,3.75214599,1193.5,1193.4,1.25599441]
[1672543428609,3.75214599,1193.5,1193.3,7.13989691]
[1672543429975,3.75214599,1193.5,1193.4,1.25599441]
[1672543430178,3.75214599,1193.5,1193.3,7.13989691]
[1672543430605,3.75214599,1193.5,1193.4,1.25599441]
[1672543433766,12.1330243,1193.6,1193.4,1.25599441]
[1672543434703,3.75214599,1193.5,1193.4,1.25599441]
[1672543436387,12.1330243,1193.6,1193.4,1.25599441]
[1672543437015,3.75214599,1193.5,1193.4,1.25599441]
[1672543437225,12.1330243,1193.6,1193.4,1.25599441]
[1672543440065,12.1330243,1193.6,1193.4,3.13989691]
[1672543440066,7.75214599,1193.6,1193.4,3.13989691]
[1672543440275,7.75214599,1193.6,1193.4,1.25599441]
[1672543440485,12.1330243,1193.6,1193.4,1.25599441]
[1672543441966,3.75214599,1193.5,1193.4,1.25599441]
[1672543442163,12.1330243,1193.6,1193.4,1.25599441]
[1672543442365,3.75214599,1193.5,1193.4,1.25599441]
[1672543443007,12.1330243,1193.6,1193.4,1.25599441]
[1672543444269,3.75214599,1193.5,1193.4,1.25599441]
[1672543444472,3.75214599,1193.5,1193.3,7.13989691]
[1672543444682,3.5,1193.4,1193.3,7.13989691]
[1672543444892,3.5,1193.4,1193.3,5.25599441]
[1672543445103,7.25214599,1193.4,1193.3,5.25599441]
[1672543446471,3.5,1193.4,1193.3,5.25599441]
[1672543447001,7.25214599,1193.4,1193.3,5.25599441]